bitfinex/quotes_BTCUSD_20251224
["timestamp","ask_amount","ask_price","bid_price","bid_amount"]
[1766593870553,0.00243,87057.0,87049.0,0.01148778]
[1766593870838,0.01152,87062.0,87052.0,0.01148738]
[1766593871237,0.01148671,87057.0,87056.0,0.01148685]
[1766593871451,0.01148736,87056.0,87055.0,0.04141273]
[1766593871956,0.01148736,87056.0,87053.0,0.01148725]
[1766593872159,0.01148736,87056.0,87052.0,0.12437]
[1766593872373,0.01148736,87056.0,87053.0,0.01148725]
[1766593872581,0.01148736,87056.0,87053.0,0.05743611]
[1766593872756,0.01148736,87056.0,87054.0,0.05743507]
[1766593873838,0.01148736,87056.0,87052.0,0.12437]
[1766593874081,0.01148736,87056.0,87053.0,0.01148725]
[1766593874289,0.01152,87059.0,87055.0,0.05743473]
[1766593874498,0.01152,87061.0,87056.0,0.13585685]
[1766593874721,0.01152,87061.0,87057.0,0.01148672]
[1766593874933,0.01152,87061.0,87056.0,0.13585685]
[1766593875142,0.01152,87061.0,87056.0,0.12437]
[1766593875581,0.01152,87061.0,87056.0,0.18180419]
[1766593875802,0.01152,87061.0,87056.0,0.19329104]
[1766593875999,0.01152,87061.0,87057.0,0.01148672]
[1766593876150,0.01152,87061.0,87056.0,0.19329104]
[1766593876549,0.01152,87061.0,87057.0,0.01148672]
[1766593877175,0.01152,87061.0,87053.0,0.01148725]
[1766593877176,0.001099,87057.0,87052.0,0.01148738]
[1766593877551,0.01152,87061.0,87050.0,0.18180713]
[1766593877552,0.08043766,87061.0,87050.0,0.19329478]
[1766593877752,0.01152,87061.0,87050.0,0.18180811]
[1766593877977,0.01152,87061.0,87050.0,0.12437]
[1766593878151,0.01152,87061.0,87053.0,0.01148725]
[1766593878810,0.01152,87061.0,87050.0,0.12437]
[1766593879014,0.01152,87061.0,87052.0,0.01148738]
[1766593879217,0.01152,87061.0,87052.0,0.0689238]
[1766593879541,0.01152,87061.0,87051.0,0.06892462]
[1766593879820,0.09195731,87061.0,87047.0,0.01152]
[1766593879935,0.02304,87061.0,87051.0,0.01148751]
[1766593880136,0.02304,87061.0,87050.0,0.0689254]
[1766593880394,0.03452619,87061.0,87051.0,0.01148751]
[1766593880589,0.02304,87061.0,87053.0,0.01148725]
[1766593880795,0.02304,87061.0,87051.0,0.06892458]
[1766593880796,0.03452619,87061.0,87050.0,0.01148765]
[1766593880998,0.01148633,87060.0,87051.0,0.01148751]
[1766593881355,0.09195735,87061.0,87050.0,0.06892574]
[1766593881741,0.09195735,87061.0,87051.0,0.01148751]
[1766593882056,0.0574328,87059.0,87048.0,0.1818095]
[1766593882251,0.22973199,87058.0,87048.0,0.123821]
[1766593882539,0.01148646,87059.0,87048.0,0.13585791]
[1766593882812,0.01148685,87056.0,87048.0,0.12437]
[1766593883110,0.01148672,87057.0,87048.0,0.12437]
[1766593883575,0.06902996,87058.0,87048.0,0.13585791]
[1766593883923,0.00011,87058.0,87050.0,0.01148765]
[1766593884143,0.39667749,87060.0,87052.0,0.12437]
[1766593884346,0.39667749,87060.0,87051.0,0.19329475]
[1766593884489,0.39667749,87060.0,87053.0,0.01148725]
[1766593884717,0.01152,87061.0,87053.0,0.13585725]
[1766593884946,0.01152,87061.0,87054.0,0.05743508]
[1766593885149,0.02300619,87061.0,87053.0,0.12437]
[1766593885350,0.01152,87061.0,87053.0,0.12437]
[1766593885555,0.01207,87065.0,87056.0,0.01148685]
[1766593885732,0.01152,87061.0,87053.0,0.13585725]
[1766593885963,0.01152,87061.0,87053.0,0.12437]
[1766593886169,0.01152,87061.0,87053.0,0.19329351]
[1766593886365,0.01152,87061.0,87053.0,0.12437]
[1766593886572,0.01152,87061.0,87054.0,0.01148712]
[1766593886782,0.01152,87061.0,87053.0,0.12437]
[1766593886950,0.01152,87061.0,87054.0,0.01148712]
[1766593887157,0.01152,87061.0,87053.0,0.19329327]
[1766593887349,0.01152,87061.0,87053.0,0.12437]
[1766593888006,0.01152,87061.0,87053.0,0.13585725]
[1766593888394,0.01152,87061.0,87053.0,0.12437]
[1766593888596,0.01152,87061.0,87053.0,0.13585725]
[1766593888907,0.01152,87061.0,87053.0,0.19329301]
[1766593889065,0.02300619,87061.0,87053.0,0.12437]
[1766593889278,0.01148633,87060.0,87053.0,0.12437]
[1766593889474,0.01152,87061.0,87053.0,0.12437]
[1766593889898,0.08043721,87061.0,87053.0,0.12437]
[1766593890194,0.02300619,87061.0,87053.0,0.12437]
[1766593890900,0.01148633,87060.0,87053.0,0.12437]
[1766593891316,0.01152,87061.0,87053.0,0.12437]
[1766593891723,0.08043748,87061.0,87053.0,0.12437]
[1766593892144,0.01152,87061.0,87053.0,0.12437]
[1766593892562,0.02300619,87061.0,87053.0,0.12437]
[1766593893005,0.01152,87061.0,87053.0,0.12437]
[1766593893211,0.01152,87061.0,87053.0,0.13585725]
[1766593893447,0.01152,87061.0,87054.0,0.01148712]
[1766593893595,0.01152,87061.0,87053.0,0.13585725]
[1766593894203,0.01152,87061.0,87054.0,0.01148712]
[1766593894401,0.01152,87061.0,87056.0,0.01148685]
[1766593894983,0.01152,87061.0,87054.0,0.06892147]
[1766593895609,0.01152,87061.0,87055.0,0.01148699]
[1766593896023,0.01152,87061.0,87054.0,0.01148712]
[1766593896227,0.01152,87061.0,87053.0,0.19329228]
[1766593896444,0.0114854,87067.0,87061.0,0.000439]
[1766593896604,0.01152,87068.0,87063.0,0.12988593]
[1766593896826,0.00028632,87072.0,87063.0,0.1184]
[1766593897022,0.01148408,87077.0,87064.0,0.1282658]
[1766593897228,0.01148448,87074.0,87065.0,0.12826567]
[1766593897427,0.05742183,87075.0,87065.0,0.12826567]
[1766593897428,0.06890618,87075.0,87065.0,0.12826567]
[1766593897637,0.04596,87085.0,87060.0,0.22972617]
[1766593897638,0.00011,87080.0,87075.0,0.01148435]
[1766593897846,0.00011,87080.0,87075.0,0.11678]
[1766593898213,0.00011,87080.0,87076.0,0.0689047]
[1766593898411,0.00011,87080.0,87075.0,0.12826435]
[1766593898619,0.00011,87080.0,87075.0,0.11678]
[1766593898931,0.00021632,87080.0,87075.0,0.11678]
[1766593899330,0.00021632,87080.0,87075.0,0.12826435]
[1766593899605,0.00021632,87080.0,87075.0,0.11678]
[1766593900122,3.2e-07,87082.0,87079.0,0.01148382]
[1766593900260,4.66e-06,87082.0,87078.0,0.12826395]
[1766593900459,4.66e-06,87082.0,87078.0,0.11678]
[1766593901060,4.66e-06,87082.0,87078.0,0.00135886]
[1766593903351,0.00025218,87080.0,87078.0,0.00135886]
[1766593906844,1.8e-07,87080.0,87078.0,0.00135886]
[1766593908319,0.06929745,87086.0,87078.0,0.00135886]
[1766593908530,0.0004,87086.0,87080.0,0.01148369]
[1766593908783,0.0004,87086.0,87078.0,0.00135886]
[1766593908988,0.0004,87086.0,87079.0,0.11678]
[1766593909214,0.0004,87086.0,87079.0,0.12826382]
[1766593909427,0.04596,87105.0,87089.0,0.0114825]
[1766593909667,0.04596,87105.0,87094.0,0.11678]
[1766593909668,0.01152,87098.0,87094.0,0.11678]
[1766593909866,0.12439039,87105.0,87094.0,0.12826184]
[1766593909867,0.01152,87100.0,87094.0,0.12826184]
[1766593909978,0.01152,87100.0,87095.0,0.01148171]
[1766593910187,0.11291,87105.0,87095.0,0.01148171]
[1766593910438,0.01152,87109.0,87103.0,0.01148066]
[1766593910657,0.01162624,87109.0,87102.0,0.01148079]
[1766593910997,0.01162624,87109.0,87101.0,0.01148092]
[1766593911197,0.01162624,87109.0,87100.0,0.05740514]
[1766593911198,0.00010624,87109.0,87104.0,0.01148052]
[1766593911654,0.00010624,87109.0,87104.0,0.12826052]
[1766593911858,0.00010624,87109.0,87106.0,0.01148026]
[1766593912086,0.00010624,87109.0,87104.0,0.12826052]
[1766593912219,0.00010624,87109.0,87106.0,0.0574011]
[1766593912421,0.00010624,87109.0,87106.0,0.01148026]
[1766593912641,2.4e-07,87109.0,87104.0,0.01148052]
[1766593913015,2.4e-07,87109.0,87103.0,0.12826066]
[1766593913245,2.4e-07,87109.0,87103.0,0.11678]
[1766593914371,2.4e-07,87109.0,87103.0,0.12826066]
[1766593914795,0.0007564,87104.0,87103.0,0.11678]
[1766593915013,0.0005654,87104.0,87103.0,0.11678]
[1766593915298,2.4e-07,87109.0,87103.0,0.12826066]
[1766593915453,2.4e-07,87109.0,87104.0,0.01148052]
[1766593916242,2.4e-07,87109.0,87105.0,0.18566174]
[1766593916452,0.17030326,87119.0,87105.0,0.18566174]
[1766593916453,0.0004,87127.0,87118.0,0.01147868]
[1766593916661,0.0004,87127.0,87121.0,0.06886909]
[1766593916662,0.01152,87125.0,87121.0,0.06886909]
[1766593916820,0.01152,87133.0,87121.0,0.06886909]
[1766593916821,0.01152,87133.0,87127.0,0.05738749]
[1766593916822,0.01152,87129.0,87127.0,0.05738749]
[1766593917019,0.0004,87136.0,87133.0,0.06885959]
[1766593917197,0.0004,87136.0,87130.0,0.11678]
[1766593917198,0.00050622,87136.0,87130.0,0.11678]
[1766593917398,0.00050622,87136.0,87130.0,0.11623]
[1766593917584,0.00050622,87136.0,87128.0,0.01147736]
[1766593917778,0.00050622,87136.0,87128.0,0.06886391]
[1766593917980,0.00050622,87136.0,87127.0,0.12825749]
[1766593918183,0.00050622,87136.0,87130.0,0.1151]
[1766593918478,0.00050622,87136.0,87131.0,0.01147697]
[1766593918658,2.2e-07,87136.0,87130.0,0.1151]
[1766593919660,2.2e-07,87137.0,87131.0,0.1151]
[1766593919861,2.2e-07,87137.0,87131.0,0.12657697]
[1766593920063,2.2e-07,87137.0,87132.0,0.12657683]
[1766593920265,2.2e-07,87137.0,87134.0,0.12657657]
[1766593920504,2.2e-07,87137.0,87135.0,0.0573822]
[1766593920704,0.000506,87135.0,87132.0,0.00010622]
[1766593920918,0.06885866,87135.0,87132.0,0.00010622]
[1766593921109,0.0114764,87137.0,87132.0,0.00010622]
[1766593921246,2.2e-07,87137.0,87132.0,0.00010622]
[1766593921446,2.2e-07,87137.0,87132.0,2.2e-07]
[1766593922272,0.01147631,87136.0,87132.0,2.2e-07]
[1766593922480,0.12118,87133.0,87132.0,2.2e-07]
[1766593922686,0.12118,87133.0,87119.0,0.01152]
[1766593922687,0.12118,87131.0,87119.0,0.025293]
[1766593922892,0.0229967,87133.0,87090.0,0.45257332]
[1766593922893,0.0004,87119.0,87111.0,0.0114796]
[1766593923089,0.01152,87122.0,87112.0,0.05739737]
[1766593923541,0.01152,87122.0,87111.0,0.06887747]
[1766593923542,0.01152,87122.0,87114.0,0.01147921]
[1766593923715,0.01152,87122.0,87118.0,0.05739336]
[1766593923939,0.01152,87122.0,87115.0,0.01147907]
[1766593924256,0.01152,87122.0,87112.0,0.1151]
[1766593924257,0.01152,87122.0,87113.0,0.01147934]
[1766593924860,0.01147828,87121.0,87112.0,0.12657947]
[1766593925020,0.01152,87122.0,87113.0,0.01147934]
[1766593926037,0.01147828,87121.0,87112.0,0.0959968]
[1766593926240,0.06887052,87120.0,87110.0,0.01147973]
[1766593926447,0.06886973,87121.0,87111.0,0.0114796]
[1766593926666,0.01147842,87120.0,87110.0,0.06887837]
[1766593927078,0.01147828,87121.0,87110.0,0.01147973]
[1766593927471,0.06902131,87122.0,87109.0,0.10569159]
[1766593927472,0.12118,87119.0,87109.0,0.01152]
[1766593927799,0.12118,87117.0,87108.0,0.01148]
[1766593928004,0.01152,87116.0,87111.0,0.05739797]
[1766593928128,0.011371,87116.0,87111.0,0.06887745]
[1766593928342,0.39667749,87121.0,87117.0,0.01147881]
[1766593928544,0.00011,87122.0,87115.0,0.06887438]
[1766593928545,0.01152,87120.0,87115.0,0.06887438]
[1766593928759,0.00011,87122.0,87115.0,0.01147907]
[1766593928957,0.01152,87121.0,87114.0,0.01147921]
[1766593929408,0.08039032,87121.0,87110.0,0.01147973]
[1766593929580,0.01147868,87118.0,87107.0,0.01152]
[1766593929811,0.05739534,87116.0,87107.0,0.01152]
[1766593930009,0.06887428,87116.0,87107.0,0.01152]
[1766593930219,0.01147894,87116.0,87107.0,0.02300013]
[1766593930583,0.01147894,87116.0,87107.0,0.01152]
[1766593931524,0.01147907,87115.0,87107.0,0.01152]
[1766593931697,0.06887386,87116.0,87107.0,0.01152]
[1766593931876,0.00025194,87112.0,87107.0,0.01152]
[1766593932516,0.00025194,87112.0,87047.0,0.20423986]
[1766593932517,0.0114796,87111.0,87102.0,0.00011]
[1766593932749,0.000549,87107.0,87102.0,0.00011]
[1766593932951,0.12118,87110.0,87102.0,0.00011]
[1766593933082,0.13265973,87110.0,87102.0,0.00011]
[1766593933278,0.12118,87110.0,87102.0,0.01159079]
[1766593933479,0.12118,87110.0,87102.0,0.00011]
[1766593933714,0.01148013,87107.0,87099.0,0.01152]
[1766593933910,0.01148,87108.0,87099.0,0.01162624]
[1766593934259,0.023,87108.0,87099.0,0.02310742]
[1766593934390,0.01152,87108.0,87099.0,0.02310742]
[1766593934594,0.01152,87108.0,87102.0,0.01148079]
[1766593934813,0.01097,87108.0,87104.0,0.01148052]
[1766593935016,0.01097,87108.0,87103.0,0.06888364]
[1766593935215,0.00025194,87112.0,87106.0,0.01148026]
[1766593935421,0.01152,87111.0,87109.0,0.01147987]
[1766593935620,0.01152,87116.0,87110.0,0.01147973]
[1766593935822,0.01152,87120.0,87111.0,0.0114796]
[1766593936035,0.01152,87120.0,87113.0,0.0573961]
[1766593936377,0.00011,87122.0,87119.0,0.01147855]
[1766593936501,0.39667749,87130.0,87119.0,0.01147855]
[1766593936502,0.01152,87125.0,87120.0,0.01147842]
[1766593936714,0.01152,87125.0,87122.0,0.01147815]
[1766593936914,0.01152,87125.0,87120.0,0.01147842]
[1766593936915,0.000549,87122.0,87120.0,0.01147842]
[1766593937118,0.40815459,87130.0,87120.0,0.01147842]
[1766593937391,0.01152,87129.0,87119.0,0.1151]
[1766593937598,0.00055,87120.0,87115.0,0.01147907]
[1766593937854,0.01147776,87125.0,87115.0,0.01147907]
[1766593938486,0.01147776,87125.0,87113.0,0.1151]
[1766593938487,0.01147815,87122.0,87113.0,0.1151]
[1766593938707,0.01147776,87125.0,87113.0,0.1151]
[1766593938708,0.06886857,87124.0,87114.0,0.01147921]
[1766593938910,0.01147763,87126.0,87117.0,0.01147881]
[1766593939110,0.01147776,87125.0,87116.0,0.01152]
[1766593939314,0.01147776,87125.0,87115.0,0.0680588]
[1766593939591,0.01147828,87121.0,87110.0,0.02299973]
[1766593939727,0.05739407,87117.0,87110.0,0.01152]
[1766593939935,0.51785749,87120.0,87110.0,0.01152]
[1766593940139,0.0688719,87119.0,87110.0,0.01152]
[1766593940399,0.01147868,87118.0,87110.0,0.01152]
[1766593940631,0.51785749,87120.0,87110.0,0.02299973]
[1766593940834,0.01152,87124.0,87112.0,0.01147947]
[1766593941037,0.01152,87124.0,87120.0,0.000549]
[1766593941400,0.01152,87124.0,87117.0,0.1151]
[1766593941599,0.00025201,87120.0,87117.0,0.1151]
[1766593943066,0.00025201,87120.0,87113.0,0.01147934]
[1766593943643,0.00025201,87120.0,87114.0,0.01147921]
[1766593944040,0.00025201,87120.0,87113.0,0.1151]
[1766593944362,0.00025201,87120.0,87114.0,0.01147921]
[1766593944561,2.01e-06,87120.0,87115.0,0.01147907]
[1766593944762,2.01e-06,87120.0,87114.0,0.1151]
[1766593945167,2.01e-06,87120.0,87114.0,0.12657921]
[1766593945566,2.01e-06,87120.0,87114.0,0.18397505]
[1766593945821,2.01e-06,87120.0,87114.0,0.12657921]
[1766593946172,2.01e-06,87120.0,87115.0,0.01147907]
[1766593946366,2.01e-06,87120.0,87114.0,0.18397513]
[1766593946616,0.01152,87124.0,87114.0,0.18397513]
[1766593946956,0.06890954,87124.0,87114.0,0.12657921]
[1766593947136,0.01147802,87123.0,87114.0,0.1151]
[1766593947290,0.01147802,87123.0,87114.0,0.11455]
[1766593947491,0.01147842,87120.0,87114.0,0.11455]
[1766593947694,0.0573928,87119.0,87114.0,0.11455]
[1766593947883,0.01147868,87118.0,87114.0,0.11455]
[1766593948326,0.06887224,87118.0,87114.0,0.11455]
[1766593948584,0.01147881,87117.0,87114.0,0.11455]
[1766593948803,0.01147921,87114.0,87110.0,0.01152]
[1766593948936,0.12332,87125.0,87103.0,0.01148066]
[1766593948937,0.12332,87123.0,87108.0,0.01152]
[1766593949140,0.3960516,87124.0,87103.0,0.12483]
[1766593949141,0.18071473,87117.0,87103.0,0.12483]
[1766593949340,0.3960516,87124.0,87102.0,0.00011]
[1766593949341,0.01148039,87105.0,87102.0,0.00011]
[1766593949545,0.01148039,87105.0,87099.0,0.00010624]
[1766593949546,0.19220011,87108.0,87099.0,0.00010624]
[1766593949779,0.12332,87108.0,87101.0,0.01148092]
[1766593949969,0.12332,87108.0,87101.0,0.06888549]
[1766593950119,0.12332,87108.0,87102.0,0.06888457]
[1766593950334,0.12332,87108.0,87103.0,0.01148066]
[1766593950536,0.00011,87112.0,87102.0,0.01148079]
[1766593950738,0.01152,87114.0,87107.0,0.10179]
[1766593950938,0.01147934,87113.0,87107.0,0.10179]
[1766593951558,0.02299921,87114.0,87107.0,0.10179]
[1766593951764,0.0114796,87111.0,87107.0,0.10179]
[1766593951969,0.0114796,87111.0,87104.0,0.00011]
[1766593952301,0.06887687,87112.0,87104.0,0.00011]
[1766593952546,0.01152,87114.0,87104.0,0.12494]
[1766593952712,0.02299921,87114.0,87104.0,0.19382291]
[1766593953082,0.02299921,87114.0,87104.0,0.13642052]
[1766593953578,0.02299921,87114.0,87104.0,0.19382305]
[1766593953967,0.01147934,87113.0,87104.0,0.12494]
[1766593954182,0.0114796,87111.0,87104.0,0.12494]
[1766593954684,0.06887772,87111.0,87104.0,0.12494]
[1766593954899,0.01147934,87113.0,87101.0,0.01152]
[1766593954900,0.01202952,87104.0,87101.0,0.01152]
[1766593955106,0.01152,87105.0,87099.0,0.00010624]
[1766593955881,0.01152,87105.0,87099.0,0.01158742]
[1766593956083,0.01152,87105.0,87099.0,0.00010624]
[1766593956294,0.01152,87105.0,87100.0,0.06888607]
[1766593956693,0.01097,87105.0,87101.0,0.01148092]
[1766593957059,0.01152,87109.0,87101.0,0.06888498]
[1766593957447,0.01152,87109.0,87102.0,0.01148079]
[1766593957624,0.01152,87109.0,87102.0,0.06888467]
[1766593957827,0.01152,87109.0,87101.0,0.01148092]
[1766593958345,0.01148,87108.0,87099.0,0.11769624]
[1766593958502,0.01147947,87112.0,87099.0,0.11769624]
[1766593958503,0.12332,87114.0,87102.0,0.01148079]
[1766593958723,0.01147934,87113.0,87103.0,0.05740328]
[1766593959094,0.12332,87114.0,87103.0,0.05740328]
[1766593959288,0.01147934,87113.0,87100.0,0.06888509]
[1766593959492,0.01147947,87112.0,87101.0,0.01148092]
[1766593959955,0.000549,87101.0,87099.0,0.01158742]
[1766593960215,0.01148,87108.0,87099.0,0.01158742]
[1766593960537,0.0688793,87109.0,87099.0,0.01158742]
[1766593960996,0.0688793,87109.0,87097.0,0.01152]
[1766593960997,0.00044276,87099.0,87097.0,0.01152]
[1766593961446,0.068883,87105.0,87097.0,0.01152]
[1766593961447,0.01148039,87105.0,87097.0,0.01152]
[1766593961645,0.01148079,87102.0,87097.0,0.01152]
[1766593961932,0.01148066,87103.0,87097.0,0.01097]
[1766593962136,0.06888405,87103.0,87097.0,0.01097]
[1766593962343,0.06888405,87103.0,87097.0,0.01041392]
[1766593962586,0.01148066,87103.0,87097.0,0.01041392]
[1766593962957,0.01148039,87105.0,87097.0,0.01041392]
[1766593963193,0.01148052,87104.0,87097.0,0.01041392]
[1766593964157,0.06888323,87104.0,87097.0,0.01041392]
[1766593964941,0.14061,87108.0,87097.0,0.01041392]
[1766593964942,0.01148013,87107.0,87097.0,0.01041392]
[1766593965148,0.01158625,87107.0,87097.0,0.02189537]
[1766593965360,0.06898742,87107.0,87097.0,0.02189537]
[1766593966192,0.01158625,87107.0,87098.0,0.01148131]
[1766593966509,0.00010612,87107.0,87098.0,0.06888788]
[1766593966684,0.00010612,87107.0,87097.0,0.01041392]
[1766593966894,0.01158625,87107.0,87097.0,0.07930254]
[1766593967301,0.00010612,87107.0,87098.0,0.0688877]
[1766593968084,0.01158625,87107.0,87097.0,0.01041392]
[1766593968279,0.01148052,87104.0,87097.0,0.01041392]
[1766593968501,0.01158625,87107.0,87103.0,0.01148066]
[1766593968502,0.00010612,87107.0,87103.0,0.01148066]
[1766593968706,0.01152,87108.0,87107.0,0.00044388]
[1766593969115,0.01152,87108.0,87106.0,0.05740082]
[1766593969468,0.01152,87108.0,87105.0,0.06888185]
[1766593969679,0.06887185,87119.0,87107.0,0.11759]
[1766593969881,0.01147802,87123.0,87112.0,0.10602947]
[1766593969882,0.01152,87123.0,87112.0,0.10602947]
[1766593970085,0.02299802,87123.0,87114.0,0.05695465]
[1766593970262,0.02299802,87123.0,87113.0,0.05970653]
[1766593970263,0.05739124,87122.0,87113.0,0.05970653]
[1766593970461,0.01147802,87123.0,87113.0,0.12858208]
[1766593970690,0.01147802,87123.0,87114.0,0.11759]
[1766593971063,0.06886838,87123.0,87114.0,0.11759]
[1766593971744,0.02310789,87124.0,87114.0,0.11759]
[1766593971927,0.01163,87124.0,87115.0,0.0688744]
[1766593972314,0.01163,87124.0,87114.0,0.18646466]
[1766593972510,0.06,87119.0,87114.0,0.18646466]
[1766593972711,0.059558,87119.0,87114.0,0.18646466]
[1766593972950,0.059558,87119.0,87114.0,0.12906921]
[1766593973385,0.059558,87119.0,87114.0,0.11759]
[1766593973563,0.059558,87119.0,87114.0,0.12906921]
[1766593973769,0.059558,87119.0,87114.0,0.11759]
[1766593975054,0.05343274,87119.0,87115.0,0.01147907]
[1766593975258,0.00011,87124.0,87115.0,0.01147907]
[1766593975259,0.01163,87124.0,87117.0,0.11759]
[1766593975493,0.01147815,87122.0,87117.0,0.11759]
[1766593976107,0.01147828,87121.0,87117.0,0.11759]
[1766593976315,0.01147842,87120.0,87117.0,0.11759]
[1766593976515,0.06887,87121.0,87117.0,0.11759]
[1766593976724,0.06887,87121.0,87111.0,0.0229996]
[1766593976725,0.06887379,87116.0,87111.0,0.01152]
[1766593976933,0.01147894,87116.0,87111.0,0.01152]
[1766593977137,0.06887376,87116.0,87111.0,0.01152]
[1766593978261,0.01147907,87115.0,87110.0,0.01152]
[1766593978591,0.01147921,87114.0,87110.0,0.01152]
[1766593978768,0.01147921,87114.0,87102.0,0.01148079]
[1766593978769,0.13185934,87113.0,87102.0,0.01148079]
[1766593978994,0.18925607,87113.0,87103.0,0.01148066]
[1766593979230,0.18925607,87113.0,87102.0,0.01148079]
[1766593979231,0.06887695,87112.0,87102.0,0.01148079]
[1766593979432,0.12038,87113.0,87103.0,0.01148066]
[1766593979606,0.06887694,87112.0,87102.0,0.01148079]
[1766593979746,0.14337934,87113.0,87103.0,0.01148066]
[1766593980407,0.14337934,87113.0,87102.0,0.06888417]
[1766593980408,0.0114796,87111.0,87101.0,0.08040423]
[1766593980640,0.1319,87113.0,87102.0,0.06888474]
[1766593980852,0.1319,87113.0,87084.0,0.22837458]
[1766593980853,0.01148052,87104.0,87091.0,0.01148224]
[1766593981045,0.52791239,87102.0,87092.0,0.05762666]
[1766593981249,0.01152,87103.0,87094.0,0.06889089]
[1766593981449,0.01152,87103.0,87095.0,0.01148171]
[1766593981609,0.01152,87103.0,87096.0,0.01148158]
[1766593981768,0.01152,87102.0,87097.0,0.01148145]
[1766593981974,0.01152,87102.0,87098.0,0.01148131]
[1766593982170,0.01152,87102.0,87094.0,0.01148184]
[1766593982559,0.1319,87102.0,87095.0,0.01148171]
[1766593982874,0.1319,87102.0,87092.0,0.00021612]
[1766593982875,0.01148105,87100.0,87092.0,0.00021612]
[1766593983119,0.06888717,87099.0,87092.0,0.00021612]
[1766593983319,0.01148118,87099.0,87092.0,0.00021612]
[1766593984348,0.13186105,87100.0,87092.0,0.00021612]
[1766593985099,0.12038,87100.0,87092.0,0.01169823]
[1766593985333,0.01152,87102.0,87092.0,0.01169823]
[1766593985334,0.01152,87102.0,87092.0,0.00021612]
[1766593985622,0.01152,87102.0,87093.0,0.01148197]
[1766593985831,0.01152,87102.0,87094.0,0.01148184]
[1766593986047,0.01152,87102.0,87096.0,0.01148158]
[1766593986269,0.12038,87106.0,87096.0,0.01148158]
[1766593986490,0.01152,87105.0,87097.0,0.01148145]
[1766593986716,0.01152,87105.0,87096.0,0.01148158]
[1766593986939,0.01152,87105.0,87098.0,0.01148131]
[1766593987147,0.01152,87105.0,87096.0,0.06888938]
[1766593987500,0.01152,87105.0,87096.0,0.01148158]
[1766593987904,0.02300039,87105.0,87096.0,0.01148158]
[1766593988524,0.01152,87104.0,87096.0,0.01148158]
[1766593989274,0.01148131,87098.0,87077.0,0.22968157]
[1766593989480,0.01148131,87098.0,86998.0,0.05726289]
[1766593989481,0.12038,87081.0,87070.0,0.01148501]
[1766593989681,0.12038,87081.0,87070.0,0.00035434]
[1766593989682,0.01148435,87075.0,87070.0,0.00035434]
[1766593989879,0.13175422,87076.0,87070.0,0.00035434]
[1766593989880,0.12038,87076.0,87070.0,0.00035434]
[1766593990286,0.1319,87076.0,87070.0,0.00035434]
[1766593990498,0.1319,87076.0,87066.0,0.00011]
[1766593990499,0.00034966,87070.0,87066.0,0.00011]
[1766593990713,0.00011,87066.0,87060.0,0.01152]
[1766593990973,0.12038,87069.0,87060.0,0.02300633]
[1766593991314,0.12038,87069.0,87060.0,0.01152]
[1766593991902,0.0114854,87067.0,87060.0,0.01152]
[1766593992153,0.06891193,87068.0,87060.0,0.01152]
[1766593992293,0.12038,87069.0,87060.0,0.01152]
[1766593992495,0.12038,87069.0,87060.0,0.08043784]
[1766593992692,0.12038,87069.0,87063.0,0.01148593]
[1766593993492,0.01152,87071.0,87069.0,0.000555]
[1766593993661,0.01152,87071.0,87064.0,0.0114858]
[1766593993662,0.01152,87071.0,87067.0,0.0114854]
[1766593993878,0.01152,87071.0,87066.0,0.06884383]
[1766593994286,0.01152,87071.0,87068.0,0.01148527]
[1766593994490,0.01152,87072.0,87068.0,0.01148527]
[1766593994697,0.01162621,87072.0,87068.0,0.01148527]
[1766593995269,0.01162621,87072.0,87065.0,0.06891393]
[1766593995471,0.01148263,87088.0,87070.0,0.01148501]
[1766593995672,0.22964905,87090.0,87076.0,0.06890525]
[1766593995673,0.0114825,87089.0,87076.0,0.06890525]
[1766593995890,0.01148277,87087.0,87077.0,0.13538408]
[1766593996177,0.01148277,87087.0,87077.0,0.1239]
[1766593996178,0.06889666,87087.0,87077.0,0.1239]
[1766593996384,0.01148277,87087.0,87077.0,0.01148408]
[1766593996725,0.0114825,87089.0,87077.0,0.06890449]
[1766593996937,0.0114829,87086.0,87076.0,0.19315939]
[1766593997057,0.01148277,87087.0,87077.0,0.01148408]
[1766593997662,0.0114829,87086.0,87076.0,0.13573856]
[1766593997918,0.01148277,87087.0,87077.0,0.06890452]
[1766593998207,0.12038,87111.0,87089.0,0.1353825]
[1766593998394,0.01152,87105.0,87096.0,0.01148158]
[1766593998827,0.01152,87105.0,87098.0,0.01148131]
[1766593999328,0.24107043,87112.0,87098.0,0.01148131]
[1766593999329,0.01152,87108.0,87101.0,0.01148092]
[1766593999550,0.02299973,87110.0,87100.0,0.01148105]
[1766593999774,0.01152,87110.0,87100.0,0.01148105]
[1766594000017,0.01147987,87109.0,87099.0,0.1832371]
[1766594000253,0.08039843,87110.0,87099.0,0.1832371]
[1766594000489,0.06887843,87110.0,87099.0,0.1832371]
[1766594000751,0.01152,87109.0,87101.0,0.01148092]
[1766594000972,0.01152,87113.0,87106.0,0.01148026]
[1766594001196,0.01152,87113.0,87108.0,0.01148]
[1766594001394,0.01152,87113.0,87106.0,0.06888137]
[1766594001601,0.01152,87113.0,87106.0,0.01148026]
[1766594001804,0.01152,87113.0,87106.0,0.06888156]
[1766594002038,0.01152,87113.0,87107.0,0.06888079]
[1766594002220,0.01162626,87113.0,87107.0,0.01148013]
[1766594002812,0.01162626,87113.0,87106.0,0.06888156]
[1766594003007,0.01162626,87113.0,87107.0,0.01148013]
[1766594003220,0.01152,87114.0,87108.0,0.05739936]
[1766594003703,0.01152,87114.0,87107.0,0.06888048]
[1766594003884,0.01152,87114.0,87107.0,0.01147999]
[1766594004085,0.01152,87114.0,87109.0,0.01147987]
[1766594004360,0.06887106,87120.0,87109.0,0.01147987]
[1766594004588,0.01152,87119.0,87109.0,0.06887909]
[1766594004781,0.01152,87119.0,87107.0,0.01147999]
[1766594004782,0.01152,87118.0,87107.0,0.05740063]
[1766594004982,0.02299868,87118.0,87107.0,0.05740063]
[1766594005204,0.02299868,87118.0,87106.0,0.0574011]
[1766594005603,0.01147881,87117.0,87107.0,0.01148013]
[1766594005855,0.06891383,87118.0,87102.0,0.01152]
[1766594005856,0.001099,87106.0,87102.0,0.01152]
[1766594006031,0.01152,87111.0,87102.0,0.01162626]
[1766594006238,0.0229996,87111.0,87102.0,0.01162626]
[1766594006389,0.01152,87111.0,87102.0,0.02310705]
[1766594006590,0.01152,87111.0,87103.0,0.01148066]
[1766594006793,0.01152,87111.0,87102.0,0.08051101]
[1766594007013,0.01152,87111.0,87103.0,0.01148066]
[1766594007225,0.01152,87111.0,87104.0,0.06888302]